fUST/lending_fUST_20250829
["ID","MTS","AMOUNT","RATE_DAILY","PERIOD"]
[381956649,1756450255709,-500.0,0.00029651,2]
[381956650,1756450255718,-447.09,0.00029657,15]
[381956651,1756450255728,-1000.0,0.00029676,2]
[381956652,1756450255737,-500.0,0.00029679,2]
[381956653,1756450255747,-1000.0,0.0002968,2]
[381956654,1756450255756,-587.600179,0.000297,20]
[381956655,1756450255765,-500.0,0.00029717,2]
[381956656,1756450255775,-500.0,0.00029722,2]
[381956657,1756450255784,-498.93757221,0.00029723,2]
[381956658,1756450255793,-447.09,0.00029757,15]
[381956659,1756450255803,-587.600179,0.00029772,20]
[381956660,1756450255813,-152.128748,0.00029772,20]
[381956661,1756450255822,-499.3,0.00029802,2]
[381956662,1756450255831,-500.0,0.00029824,2]
[381956663,1756450255840,-587.600179,0.00029844,20]
[381956664,1756450255849,-152.128748,0.00029844,20]
[381956665,1756450255859,-1760.0,0.00029846,2]
[381956666,1756450255867,-447.09,0.00029857,15]
[381956667,1756450255876,-500.0,0.00029904,2]
[381956668,1756450255885,-587.600179,0.00029916,20]
[381956669,1756450255894,-152.128748,0.00029916,20]
[381956670,1756450255903,-500.0,0.00029944,2]
[381956671,1756450255912,-447.09,0.00029957,15]
[381956672,1756450255921,-500.0,0.00029957,2]
[381956673,1756450255930,-1000.0,0.00029971,2]
[381956674,1756450255939,-587.600179,0.00029988,20]
[381956675,1756450255948,-152.128748,0.00029988,20]
[381956676,1756450255957,-487.09970945,0.0003,30]
[381956677,1756450255971,-361.53868079,0.0003,120]
[381956678,1756450255980,-4833.18,0.0003,7]
[381956679,1756450255990,-165.95,0.0003,30]
[381956680,1756450255999,-160.0,0.0003,10]
[381956681,1756450256009,-587.600179,0.0003,14]
[381956682,1756450256018,-1000.0,0.0003,120]
[381956683,1756450256027,-227.73,0.0003,60]
[381956684,1756450256037,-160.0,0.0003,10]
[381956685,1756450256046,-160.0,0.0003,10]
[381956686,1756450256055,-1276.0,0.00030031,2]
[381956687,1756450256064,-447.09,0.00030057,15]
[381956688,1756450256073,-1000.0,0.00030064,7]
[381956689,1756450256083,-1000.0,0.00030071,7]
[381956690,1756450256092,-1000.0,0.00030078,7]
[381956691,1756450256101,-2281.68,0.000301,7]
[381956692,1756450256111,-1000.0,0.00030114,7]
[381956693,1756450256120,-500.0,0.00030115,7]
[381956694,1756450256130,-500.0,0.00030133,7]
[381956695,1756450256139,-1000.0,0.00030136,7]
[381956696,1756450256148,-164.815228,0.00030137,2]
[381956697,1756450256158,-601.9,0.00030137,30]
[381956698,1756450256167,-1000.0,0.00030155,7]
[381956699,1756450256176,-447.09,0.00030157,15]
[381956700,1756450256185,-810.09644179,0.00030181,2]
[381956701,1756450256194,-1000.0,0.00030192,7]
[381956702,1756450256203,-979.06303341,0.000302,2]
[381956703,1756450256212,-1000.0,0.00030223,7]
[381956704,1756450256221,-500.0,0.00030239,7]
[381956705,1756450256231,-500.0,0.00030239,7]
[381956706,1756450256239,-447.09,0.00030257,15]
[381956707,1756450256248,-56218.33764727,0.00030265,2]
[381956708,1756450256257,-1589.0,0.00030265,3]
[381956709,1756450256266,-1867.28834277,0.00030265,2]
[381956710,1756450256275,-507.0691128,0.00030265,2]
[381956711,1756450256284,-48000.0,0.00030265,2]
[381956712,1756450256293,-179.11653102,0.00030265,2]
[381956713,1756450256302,-467.37791021,0.00030265,2]
[381956714,1756450256312,-307.67204908,0.00030265,30]
[381956715,1756450256321,-30418.18508636,0.00030265,2]
[381956716,1756450256329,-981.85615514,0.00030265,2]
[381956717,1756450256338,-188.97704558,0.00030265,2]
[381956718,1756450256347,-1190.18946385,0.00030265,2]
[381956719,1756450256356,-1395.07674698,0.00030265,2]
[381956720,1756450256367,-5887.62385695,0.00030265,2]
[381956721,1756450256376,-2413.51711314,0.00030265,30]
[381956722,1756450256385,-10672.37687155,0.00030265,2]
[381956723,1756450256394,-180.39242145,0.00030265,30]
[381956724,1756450256403,-650.52895612,0.00030265,2]
[381956725,1756450256412,-903.5697069,0.00030265,2]
[381956726,1756450256421,-500.0,0.00030265,3]
[381956727,1756450256430,-478.22999117,0.00030265,2]
[381956728,1756450256439,-2920.0,0.00030265,2]
[381956729,1756450256449,-178.86754495,0.00030265,30]
[381956730,1756450256457,-163.13660562,0.00030265,2]
[381956731,1756450256468,-779.34501431,0.00030265,2]
[381956732,1756450256478,-245.9544088,0.00030265,30]
[381956733,1756450256487,-384.60678864,0.00030265,2]
[381956734,1756450256497,-201.25214817,0.00030265,2]
[381956735,1756450256506,-4912.03915108,0.00030265,5]
[381956736,1756450256586,-3144.2730306,0.00030265,2]
[381956737,1756450256606,-2345.82565135,0.00030265,2]
[381956738,1756450256618,-10055.55500368,0.00030265,30]
[381956739,1756450256628,-166.42925647,0.00030265,2]
[381956740,1756450256638,-100143.98507754,0.00030265,2]
[381956741,1756450256647,-150.18408949,0.00030265,2]
[381956742,1756450256657,-3147.25219487,0.00030265,2]
[381956743,1756450256667,-160.48845061,0.00030265,2]
[381956744,1756450256677,-325.55578167,0.00030265,7]
[381956745,1756450256687,-258.26706545,0.00030265,2]
[381956746,1756450256696,-1227.97731149,0.00030265,15]
[381956747,1756450256705,-264.22405167,0.00030265,30]
[381956748,1756450256714,-2000.77976647,0.00030265,7]
[381956749,1756450256723,-865.26844503,0.00030265,30]
[381956750,1756450256732,-64099.86934298,0.00030265,2]
[381956751,1756450256741,-300.0,0.00030265,2]
[381956752,1756450256750,-3876.80473257,0.00030265,2]
[381956753,1756450256759,-808.87436443,0.00030265,2]
[381956754,1756450256768,-1154.03230418,0.00030265,32]
[381956755,1756450256777,-254.52889285,0.00030265,2]
[381956756,1756450256786,-296.57384713,0.00030265,2]
[381956757,1756450256795,-326.67392264,0.00030265,2]
[381956758,1756450256804,-162.58782964,0.00030265,7]
[381956760,1756450256813,-291.54868133,0.00030265,2]
[381956761,1756450256822,-1155.29731995,0.00030265,5]
[381956762,1756450256831,-51675.22351809,0.00030265,2]
[381956763,1756450256839,-636.58437177,0.00030265,2]
[381956764,1756450256848,-1360.07091314,0.00030265,2]
[381956765,1756450256857,-156.45845109,0.00030265,2]
[381956766,1756450256868,-15004.19934702,0.00030265,2]
[381956767,1756450256877,-245.76461218,0.00030265,30]
[381956768,1756450256885,-6286.39380103,0.00030265,2]
[381956769,1756450256894,-1397.28008914,0.00030265,30]
[381956770,1756450256902,-157.467313,0.00030265,2]
[381956771,1756450256911,-102382.33879569,0.00030265,2]
[381956772,1756450256920,-6396.0,0.00030265,5]
[381956773,1756450256929,-6813.14024585,0.00030265,5]
[381956774,1756450256939,-1714.68110608,0.00030265,2]
[381956775,1756450256948,-246.39399789,0.00030265,30]
[381956776,1756450256957,-675.2315736,0.00030265,30]
[381956777,1756450256971,-8844.4414787,0.00030265,5]
[381956778,1756450256979,-2176.01,0.00030265,2]
[381956779,1756450256988,-157.2,0.00030265,2]
[381956780,1756450256998,-2538.78,0.00030265,2]
[381956781,1756450257008,-27081.00301702,0.00030265,2]
[381956782,1756450257018,-631.3018598,0.00030265,30]
[381956783,1756450257027,-250.0,0.00030265,10]
[381956784,1756450257036,-250.0,0.00030265,10]
[381956785,1756450257046,-250.0,0.00030265,10]
[381956786,1756450257055,-388.321994,0.00030265,10]
[381956787,1756450257064,-613.0,0.00030265,120]
[381956788,1756450257073,-1000.0,0.00030286,60]
[381956789,1756450257082,-1000.0,0.00030288,7]
[381956790,1756450257091,-2015.93,0.0003029,60]
[381956791,1756450257101,-224.7,0.00030293,60]
[381956792,1756450257112,-311.0,0.00030297,60]
[381956793,1756450257121,-537.36,0.00030297,60]
[381956794,1756450257131,-2851.255427,0.000303,2]
[381956795,1756450257140,-587.600179,0.000303,60]
[381956796,1756450257149,-1000.0,0.00030308,7]
[381956797,1756450257158,-500.0,0.00030318,7]
[381956798,1756450257169,-4906.19071164,0.00030325,13]
[381956799,1756450257178,-1000.0,0.00030332,120]
[381956800,1756450257187,-501.10340092,0.0003035,60]
[381956801,1756450257196,-447.09,0.00030357,15]
[381956802,1756450257205,-500.0,0.00030371,7]
[381956803,1756450257215,-500.0,0.00030378,7]
[381956804,1756450257225,-1344.16328593,0.00030394,2]
[381956805,1756450257234,-1000.0,0.00030432,7]
[381956806,1756450257243,-500.0,0.00030438,7]
[381956807,1756450257253,-447.09,0.00030457,15]
[381956808,1756450257262,-866.45359649,0.0003046,30]
[381956809,1756450257271,-1000.0,0.00030465,7]
[381956810,1756450257280,-1000.0,0.00030555,7]
[381956811,1756450257289,-447.09,0.00030557,15]
[381956812,1756450257298,-1000.0,0.00030567,7]
[381956813,1756450257307,-500.0,0.0003057,7]
[381956814,1756450257317,-500.0,0.00030573,7]
[381956815,1756450257325,-540.8419123,0.00030593,30]
[381956816,1756450257335,-1000.0,0.00030604,7]
[381956817,1756450257344,-500.0,0.00030612,7]
[381956818,1756450257354,-500.0,0.00030618,7]
[381956819,1756450257364,-500.0,0.00030654,7]
[381956820,1756450257373,-447.09,0.00030657,15]
[381956821,1756450257381,-200.0,0.00030663,120]
[381956822,1756450257390,-500.0,0.00030718,7]
[381956823,1756450257399,-500.0,0.00030729,7]
[381956824,1756450257408,-500.0,0.00030736,7]
[381956825,1756450257418,-447.09,0.00030757,15]
[381956826,1756450257427,-966.45,0.00030765,7]
[381956827,1756450257436,-155.88243285,0.000308,120]
[381956828,1756450257445,-1393.47,0.000308,7]
[381956829,1756450257455,-447.09,0.00030857,15]
[381956830,1756450257464,-587.600179,0.00030875,14]
[381956831,1756450257473,-152.128748,0.00030875,14]
[381956832,1756450257482,-587.600179,0.00030941,2]
[381956833,1756450257491,-152.128748,0.00030941,2]
[381956834,1756450257501,-974.0,0.00030943,2]
[381956835,1756450257510,-632.0,0.00030943,2]
[381956836,1756450257520,-2151.0,0.00030943,2]
[381956837,1756450257530,-409.0,0.00030943,2]
[381956838,1756450257540,-150.0,0.00030943,2]
[381956839,1756450257549,-409.0,0.00030943,2]
[381956840,1756450257559,-447.09,0.00030957,15]
[381956841,1756450257569,-302.81638562,0.0003099,2]
[381956842,1756450257579,-152.0,0.00031,120]
[381956843,1756450257588,-2281.68,0.00031,7]
[381956844,1756450257598,-425.57542551,0.00031,30]
[381956845,1756450257607,-232.6790651,0.00031,30]
[381956846,1756450257619,-160.0,0.00031,30]
[381956847,1756450257628,-845.57753514,0.00031,30]
[381956848,1756450257638,-529.77114056,0.00031,10]
[381956849,1756450257647,-160.0,0.00031,30]
[381956850,1756450257656,-160.0,0.00031,30]
[381956851,1756450257665,-217.30324474,0.00031,30]
[381956852,1756450257674,-216.21406313,0.00031,30]
[381956853,1756450257683,-417.15472785,0.00031,30]
[381956854,1756450257694,-160.0,0.00031,30]
[381956855,1756450257704,-500.0,0.00031002,7]
[381956856,1756450257713,-510.85569268,0.00031024,7]
[381956857,1756450257723,-500.0,0.00031056,7]
[381956858,1756450257732,-447.09,0.00031057,15]
[381956859,1756450257741,-500.0,0.00031069,7]
[381956860,1756450257750,-500.0,0.00031079,7]
[381956861,1756450257760,-833.99985597,0.00031083,7]
[381956862,1756450257770,-500.0,0.00031086,7]
[381956863,1756450257779,-447.09,0.00031157,15]
[381956864,1756450257789,-500.0,0.00031179,7]
[381956865,1756450257798,-1354.9355074,0.00031188,7]
[381956866,1756450257808,-500.0,0.00031224,7]
[381956867,1756450257817,-932.87622705,0.00031231,7]
[381956868,1756450257827,-513.79371925,0.00031253,7]
[381956869,1756450257836,-447.09,0.00031257,15]
[381956870,1756450257845,-5000.0,0.00031281,4]
[381956871,1756450257854,-4833.18,0.000313,7]
[381956872,1756450257864,-150.0,0.000313,5]
[381956873,1756450257874,-165.008113,0.00031311,2]
[381956874,1756450257883,-447.09,0.00031357,15]
[381956875,1756450257893,-447.09,0.00031457,15]
[381956876,1756450257903,-447.09,0.00031557,15]
[381956877,1756450257913,-447.09,0.00031657,15]
[381956878,1756450257923,-587.600179,0.0003175,14]
[381956879,1756450257932,-152.128748,0.0003175,14]
[381956880,1756450257942,-447.09,0.00031757,15]
[381956881,1756450257951,-4833.18,0.000318,7]
[381956882,1756450257961,-4906.19071164,0.00031814,17]
[381956883,1756450257974,-250.0,0.00031848,5]
[381956884,1756450257984,-447.09,0.00031857,15]
[381956885,1756450257993,-15017.76744948,0.000319,2]
[381956886,1756450258003,-2281.68,0.000319,7]
[381956887,1756450258014,-447.09,0.00031957,15]
[381956888,1756450258023,-1000.0,0.00032,120]
[381956889,1756450258034,-447.09,0.00032057,15]
[381956890,1756450258044,-447.09,0.00032157,15]
[381956891,1756450258055,-447.09,0.00032257,15]
[381956892,1756450258138,-150.0,0.00032346,2]
[381956893,1756450258148,-150.0,0.00032346,2]
[381956894,1756450258157,-447.09,0.00032357,15]
[381956895,1756450258167,-350.0,0.00032396,5]
[381956896,1756450258177,-447.09,0.00032457,15]
[381956897,1756450258187,-447.09,0.00032557,15]
[381956898,1756450258196,-587.600179,0.00032608,60]
[381956899,1756450258206,-152.128748,0.00032608,60]
[381956900,1756450258215,-587.600179,0.00032625,14]
[381956901,1756450258224,-152.128748,0.00032625,14]
[381956902,1756450258234,-447.09,0.00032657,15]
[381956903,1756450258244,-447.09,0.00032757,15]
[381956904,1756450258253,-447.09,0.00032857,15]
[381956905,1756450258263,-1000.0,0.00032876,120]
[381956906,1756450258272,-333.18,0.00032877,10]
[381956907,1756450258282,-405.8,0.00032877,10]
[381956908,1756450258292,-338.17,0.00032877,10]
[381956909,1756450258302,-281.81,0.00032877,10]
[381956910,1756450258311,-1000.0,0.00032877,5]
[381956911,1756450258321,-542.42,0.00032879,120]
[381956912,1756450258331,-213.82,0.0003288,30]
[381956913,1756450258340,-186.11,0.0003288,30]
[381956914,1756450258350,-1030.88466957,0.00032904,120]
[381956915,1756450258360,-463.16712169,0.00032944,5]
[381956916,1756450258372,-447.09,0.00032957,60]
[381956917,1756450258385,-1156.01688458,0.00033,2]
[381956918,1756450258395,-447.09,0.00033057,60]
[381956919,1756450258409,-447.09,0.00033157,60]
[381956920,1756450258418,-4833.18,0.000332,14]
[381956921,1756450258428,-447.09,0.00033257,60]
[381956922,1756450258438,-4906.19071164,0.00033303,20]
[381956923,1756450258450,-447.09,0.00033357,60]
[381956924,1756450258460,-447.09,0.00033457,60]
[381956925,1756450258477,-587.600179,0.000335,14]
[381956926,1756450258493,-152.128748,0.000335,14]
[381956927,1756450258504,-447.09,0.00033557,60]
[381956928,1756450258514,-164.815228,0.00033562,2]
[381956929,1756450258524,-447.09,0.00033657,60]
[381956930,1756450258536,-199.0,0.00033698,7]
[381956931,1756450258547,-152.0,0.000337,120]
[381956932,1756450258557,-447.09,0.00033757,60]
[381956933,1756450258568,-447.09,0.00033857,60]
[381956934,1756450258576,-974.0,0.00033943,2]
[381956935,1756450258586,-632.0,0.00033943,2]
[381956936,1756450258597,-2151.0,0.00033943,2]
[381956937,1756450258609,-409.0,0.00033943,2]
[381956938,1756450258623,-409.0,0.00033943,2]
[381956939,1756450258633,-447.09,0.00033957,60]
[381956940,1756450258642,-1393.47,0.00034,7]
[381956941,1756450258652,-1000.0,0.00034,120]
[381956942,1756450258668,-447.09,0.00034057,60]
[381956943,1756450258678,-4000.0,0.00034146,4]
[381956944,1756450258687,-447.09,0.00034157,60]
[381956945,1756450258696,-447.09,0.00034257,60]
[381956946,1756450258705,-447.09,0.00034357,60]
[381956947,1756450258715,-199.0,0.00034383,8]
[381956948,1756450258724,-447.09,0.00034457,60]
[381956949,1756450258733,-383.086804,0.00034521,120]
[381956950,1756450258742,-447.09,0.00034557,60]
[381956951,1756450258752,-447.09,0.00034657,60]
[381956952,1756450258761,-976.84331161,0.000347,30]
[381956953,1756450258770,-447.09,0.00034757,60]
[381956954,1756450258780,-447.09,0.00034857,60]
[381956955,1756450258790,-587.600179,0.00034917,60]
[381956956,1756450258799,-152.128748,0.00034917,60]
[381956957,1756450258809,-447.09,0.00034957,60]
[381956958,1756450258819,-150.0,0.00035,69]
[381956959,1756450258828,-10640.22867945,0.00035,2]
[381956960,1756450258838,-652.99782251,0.00035,2]
[381956961,1756450258847,-319.86792937,0.00035,120]
[381956962,1756450258857,-1817.77515211,0.00035,2]
[381956963,1756450258868,-2004.32728502,0.00035,14]
[381956964,1756450258878,-400.59829364,0.00035,30]
[381956965,1756450258887,-160.0,0.00035,14]
[381956966,1756450258897,-414.69212905,0.00035,20]
[381956967,1756450258908,-531.61900638,0.00035,120]
[381956968,1756450258918,-760.05824336,0.00035,120]
[381956969,1756450258928,-788.50053414,0.00035,120]
[381956970,1756450258937,-550.0,0.00035,60]
[381956971,1756450258946,-447.09,0.00035057,60]
[381956972,1756450258955,-199.0,0.00035068,9]
[381956973,1756450258967,-447.09,0.00035157,60]
[381956974,1756450258978,-200.0,0.000352,120]
[381956975,1756450258995,-200.0,0.000352,120]
[381956976,1756450259012,-302.6539,0.000352,120]
[381956977,1756450259022,-291.40064,0.000352,120]
[381956978,1756450259031,-1042.43108,0.000352,120]
[381956979,1756450259041,-447.09,0.00035257,60]
[381956980,1756450259051,-150.0,0.00035346,2]
[381956981,1756450259061,-150.0,0.00035346,2]
[381956982,1756450259070,-447.09,0.00035357,60]
[381956983,1756450259080,-447.09,0.00035457,60]
[381956984,1756450259089,-447.09,0.00035557,60]
[381956985,1756450259099,-189.48661902,0.00035616,2]
[381956986,1756450259108,-447.09,0.00035657,60]
[381956987,1756450259119,-199.0,0.00035753,10]
[381956988,1756450259131,-447.09,0.00035757,60]
[381956989,1756450259141,-447.09,0.00035857,60]
[381956990,1756450259150,-447.09,0.00035957,60]
[381956991,1756450259160,-1000.0,0.00036,120]
[381956992,1756450259169,-447.09,0.00036057,60]
[381956993,1756450259179,-447.09,0.00036157,60]
[381956994,1756450259189,-202.88298881,0.0003621,2]
[381956995,1756450259199,-263.8935353,0.0003624,2]
[381956996,1756450259209,-447.09,0.00036257,60]
[381956997,1756450259219,-447.09,0.00036357,60]
[381956998,1756450259229,-152.0,0.000364,120]
[381956999,1756450259238,-199.0,0.00036438,11]
[381957000,1756450259248,-447.09,0.00036457,60]
[381957001,1756450259258,-447.11507154,0.00036557,60]
[381957002,1756450259267,-974.0,0.00036943,2]
[381957003,1756450259276,-632.0,0.00036943,2]
[381957004,1756450259285,-2151.0,0.00036943,2]
[381957005,1756450259295,-409.0,0.00036943,2]
[381957006,1756450259304,-409.0,0.00036943,2]
[381957007,1756450259314,-2281.68,0.00037,7]
[381957008,1756450259323,-199.0,0.00037123,12]
[381957009,1756450259333,-296.16416,0.000372,120]
[381957010,1756450259343,-200.0,0.000372,120]
[381957011,1756450259352,-1042.43108,0.000372,120]
[381957012,1756450259361,-587.600179,0.00037225,60]
[381957013,1756450259373,-152.128748,0.00037225,60]
[381957014,1756450259383,-587.600179,0.00037233,2]
[381957015,1756450259392,-152.128748,0.00037233,2]
[381957016,1756450259402,-157.2,0.000375,112]
[381957017,1756450259412,-857.67485348,0.00037753,120]
[381957018,1756450259422,-4906.19071164,0.00037771,29]
[381957019,1756450259432,-1012.34626308,0.000378,2]
[381957020,1756450259442,-199.0,0.00037808,13]
[381957021,1756450259451,-3816.5870694,0.00038,120]
[381957022,1756450260562,160.04786,0.00013699,2]
[381957023,1756450261107,5000.0,0.00017,2]
[381957024,1756450284384,5000.0,0.00017,2]
[381957025,1756450308208,5000.0,0.00017,2]
[381957029,1756451061944,180.797121,9.807e-05,2]
[381957030,1756451062258,180.797121,0.00014518,2]
[381957032,1756451132472,1033.72877778,0.0002987,60]
[381957033,1756451144103,-160.0,0.00017238,2]
[381957034,1756451144127,-151.0,0.000188,14]
[381957035,1756451144149,-315.46222369,0.000188,21]
[381957036,1756451144172,-180.797121,0.00019229,2]
[381957037,1756451144192,-3327.913452,0.00019229,2]
[381957038,1756451144213,-1814.294801,0.00019337,2]
[381957039,1756451144233,-1223.63029537,0.00019341,2]
[381957040,1756451144254,-384.131548,0.00019789,2]
[381957041,1756451144274,-1200.0,0.0001988,2]
[381957042,1756451144295,-1771.14042857,0.00019881,2]
[381957043,1756451144314,-239.0,0.00019897,2]
[381957044,1756451144335,-300.0,0.00019897,2]
[381957045,1756451144356,-300.0,0.00019897,2]
[381957046,1756451144376,-300.0,0.00019897,2]
[381957047,1756451144397,-1200.0,0.00019898,2]
[381957048,1756451144422,-160.0,0.0002,7]
[381957049,1756451144442,-160.0,0.0002,7]
[381957050,1756451144463,-160.04786,0.00020187,2]
[381957051,1756451144484,-151.0,0.0002057,2]
[381957052,1756451144504,-3000.0,0.00021,2]
[381957053,1756451144524,-3000.0,0.0002101,2]
[381957054,1756451144544,-3000.0,0.0002102,2]
[381957055,1756451144566,-3000.0,0.0002103,2]
[381957056,1756451144585,-3000.0,0.0002104,2]
[381957057,1756451144605,-3000.0,0.0002105,2]
[381957058,1756451144627,-3000.0,0.0002106,2]
[381957059,1756451144647,-3000.0,0.0002107,2]
[381957060,1756451144669,-500.0,0.00021073,2]
[381957061,1756451144688,-275.8955373,0.00021073,2]
[381957062,1756451144708,-3000.0,0.0002108,2]
[381957063,1756451144728,-3000.0,0.0002109,2]
[381957064,1756451144748,-3000.0,0.000211,2]
[381957065,1756451144769,-446.96968647,0.00021109,2]
[381957066,1756451144791,-225.56632425,0.00021109,2]
[381957067,1756451144811,-500.0,0.00021109,2]
[381957068,1756451144832,-515.13537056,0.00021109,2]
[381957069,1756451144855,-500.0,0.00021109,2]
[381957070,1756451144879,-500.0,0.00021109,2]
[381957071,1756451144899,-497.94062859,0.00021109,2]
[381957072,1756451144923,-500.0,0.00021109,2]
[381957073,1756451144947,-500.0,0.00021109,2]
[381957074,1756451144972,-449.87179862,0.00021109,2]
[381957075,1756451144996,-500.0,0.00021109,2]
[381957076,1756451145019,-403.75041874,0.00021109,2]
[381957077,1756451145041,-3000.0,0.0002111,2]
[381957078,1756451145063,-3000.0,0.0002112,2]
[381957079,1756451145091,-3000.0,0.0002113,2]
[381957080,1756451145112,-3000.0,0.0002114,2]
[381957081,1756451145134,-3000.0,0.0002115,2]
[381957082,1756451145155,-3000.0,0.0002116,2]
[381957083,1756451145176,-3000.0,0.0002117,2]
[381957084,1756451145197,-3000.0,0.0002118,2]
[381957085,1756451145217,-3000.0,0.0002119,2]
[381957086,1756451145239,-3000.0,0.000212,2]
[381957087,1756451145260,-3000.0,0.0002121,2]
[381957088,1756451145287,-3000.0,0.0002122,2]
[381957089,1756451145319,-3000.0,0.0002123,2]
[381957090,1756451145339,-3000.0,0.0002124,2]
[381957091,1756451145360,-3000.0,0.0002125,2]
[381957092,1756451145381,-689.06,0.0002125,10]
[381957093,1756451145407,-574.21,0.0002125,10]
[381957094,1756451145430,-3000.0,0.0002126,2]
[381957095,1756451145452,-4339.171478,0.0002127,2]
[381957096,1756451145475,-160.0,0.00022139,2]
[381957097,1756451145496,-417.15472785,0.00022139,2]
[381957098,1756451145516,-160.0,0.00022139,2]
[381957099,1756451145536,-216.21406313,0.00022139,2]
[381957100,1756451145663,-232.6790651,0.00022139,2]
[381957101,1756451145686,-160.0,0.00022139,2]
[381957102,1756451145706,-160.0,0.00022139,2]
[381957103,1756451145727,-160.0,0.00022139,2]
[381957104,1756451145748,-217.30324474,0.00022139,2]
[381957105,1756451145769,-529.77114056,0.00022139,2]
[381957106,1756451145790,-160.0,0.00022139,2]
[381957107,1756451145811,-11358.84933845,0.0002214,2]
[381957108,1756451145832,-601.21855107,0.000222,2]
[381957109,1756451145853,-262.77309875,0.00023074,2]
[381957110,1756451145873,-194.29662769,0.00024494,7]
[381957111,1756451145895,-763.797,0.00024494,7]
[381957112,1756451145916,-253.35274779,0.00024594,2]
[381957113,1756451145937,-380.0,0.00024658,2]
[381957114,1756451145959,-12410.9034629,0.000248,2]
[381957115,1756451145981,-156.40239462,0.00024899,2]
[381957116,1756451146001,-154.83,0.000249,7]
[381957117,1756451146024,-2874.5,0.000249,7]
[381957118,1756451146045,-17595.53767019,0.000249,2]
[381957119,1756451230099,-250.0,0.00023042,2]
[381957120,1756451230119,-216.21406313,0.00024,7]
[381957121,1756451230140,-216.21406313,0.00024,7]
[381957122,1756451230159,-185.37691788,0.000247,2]
[381957123,1756451230179,-185.37691785,0.00024733,2]
[381957124,1756451230199,-185.37691785,0.00024767,2]
[381957125,1756451230220,-300.0,0.00024799,2]
[381957126,1756451230240,-1200.0,0.00024799,2]
[381957127,1756451230267,-7947.11050654,0.000248,2]
[381957128,1756451230288,-160.0,0.000248,2]
[381957129,1756451230308,-217.30324474,0.000248,2]
[381957130,1756451230328,-160.0,0.000248,2]
[381957131,1756451230348,-417.15472785,0.000248,2]
[381957132,1756451230368,-529.77114056,0.000248,2]
[381957133,1756451230389,-185.37691785,0.000248,2]
[381957134,1756451230526,-216.21406313,0.000248,2]
[381957135,1756451230547,-160.0,0.000248,2]
[381957136,1756451230568,-478.51,0.0002489,10]
[381957137,1756451230590,-398.76,0.0002489,10]
[381957138,1756451230610,-446.96968647,0.00024899,2]
[381957139,1756451230631,-515.13537056,0.00024899,2]
[381957140,1756451230652,-225.56632425,0.00024899,2]
[381957141,1756451230676,-500.0,0.00024899,2]
[381957142,1756451230695,-500.0,0.00024899,2]
[381957143,1756451230719,-500.0,0.00024899,2]
[381957144,1756451230746,-500.0,0.00024899,2]
[381957145,1756451230766,-497.94062859,0.00024899,2]
[381957146,1756451230788,-500.0,0.00024899,2]
[381957147,1756451230810,-500.0,0.00024899,2]
[381957148,1756451230831,-449.87179862,0.00024899,2]
[381957149,1756451230853,-403.75041874,0.00024899,2]
[381957150,1756451230874,-219496.04498281,0.000249,2]
[381957151,1756451230895,-205.82131548,0.000249,2]
[381957152,1756451230916,-216.21406313,0.00025,10]
[381957153,1756451230938,-216.21406313,0.00025,10]